[Event "Titled Tuesday Blitz March 07 Early 2023"]
[White "Janaszak, Dawid"]
[Black "Comas Fabrego, Lluis"]
[WhiteFideId "1119206"]
[BlackFideId "2200325"]
[WhiteElo "2220"]
[BlackElo "2523"]
[Result "1-0"]
[Round "01"]
[TimeControl "180+2"]
[Date "2023.03.07"]
[WhiteClock "0:00:47"]
[BlackClock "0:00:08"]

1. e4 {[%clk 0:03:00]}  c5 {[%clk 0:02:59]} 2. Nc3 {[%clk 0:03:00]}  d6 {[%clk 0:02:59]} 3. f4 {[%clk 0:02:57]}  g6 {[%clk 0:02:57]} 4. Nf3 {[%clk 0:02:57]}  Bg7 {[%clk 0:02:57]} 5. Bc4 {[%clk 0:02:58]}  Nc6 {[%clk 0:02:56]} 6. O-O {[%clk 0:02:54]}  e6 {[%clk 0:02:56]} 7. d4 {[%clk 0:02:53]}  cxd4 {[%clk 0:02:36]} 8. Nb5 {[%clk 0:02:52]}  a6 {[%clk 0:02:34]} 9. Nbxd4 {[%clk 0:02:52]}  Nge7 {[%clk 0:02:05]} 10. c3 {[%clk 0:02:39]}  O-O {[%clk 0:02:05]} 11. Qe1 {[%clk 0:02:37]}  d5 {[%clk 0:02:00]} 12. exd5 {[%clk 0:02:34]}  exd5 {[%clk 0:01:48]} 13. Bb3 {[%clk 0:02:33]}  Nxd4 {[%clk 0:01:44]} 14. Nxd4 {[%clk 0:02:32]}  Bxd4+ {[%clk 0:01:40]} 15. cxd4 {[%clk 0:02:32]}  Nf5 {[%clk 0:01:40]} 16. Kh1 {[%clk 0:02:27]}  Re8 {[%clk 0:01:20]} 17. Qf2 {[%clk 0:02:24]}  Qb6 {[%clk 0:01:19]} 18. Bxd5 {[%clk 0:02:17]}  Bd7 {[%clk 0:01:14]} 19. Rd1 {[%clk 0:01:55]}  Rad8 {[%clk 0:01:10]} 20. g4 {[%clk 0:01:44]}  Bc6 {[%clk 0:01:09]} 21. Bxc6 {[%clk 0:01:25]}  Qxc6+ {[%clk 0:01:08]} 22. Qg2 {[%clk 0:01:25]}  Qxg2+ {[%clk 0:00:59]} 23. Kxg2 {[%clk 0:01:25]}  Nxd4 {[%clk 0:00:56]} 24. Rd2 {[%clk 0:01:21]}  Nb5 {[%clk 0:00:46]} 25. Rxd8 {[%clk 0:01:16]}  Rxd8 {[%clk 0:00:45]} 26. Be3 {[%clk 0:01:17]}  Rd3 {[%clk 0:00:38]} 27. Kf2 {[%clk 0:01:16]}  Rd7 {[%clk 0:00:32]} 28. Rc1 {[%clk 0:01:11]}  Kg7 {[%clk 0:00:29]} 29. a4 {[%clk 0:01:08]}  Nc7 {[%clk 0:00:29]} 30. Ke2 {[%clk 0:00:53]}  Ne6 {[%clk 0:00:27]} 31. Rc4 {[%clk 0:00:52]}  Nd8 {[%clk 0:00:27]} 32. Bd4+ {[%clk 0:00:51]}  Kf8 {[%clk 0:00:19]} 33. Bf6 {[%clk 0:00:51]}  Nc6 {[%clk 0:00:18]} 34. b4 {[%clk 0:00:52]}  Rd6 {[%clk 0:00:18]} 35. g5 {[%clk 0:00:51]}  Ke8 {[%clk 0:00:18]} 36. b5 {[%clk 0:00:51]}  Na5 {[%clk 0:00:09]} 37. Rc7 {[%clk 0:00:48]}  Rd7 {[%clk 0:00:08]} 38. Rc8+ {[%clk 0:00:47]} 1-0


[Site "https://www.chess.com"]

[Event "Titled Tuesday Blitz March 07 Early 2023"]
[White "Kopczynski, Michal"]
[Black "Chabris, Christopher"]
[WhiteFideId "1124200"]
[BlackFideId "2005263"]
[WhiteElo "2212"]
[BlackElo "2207"]
[Result "0-1"]
[Round "01"]
[TimeControl "180+2"]
[Date "2023.03.07"]
[WhiteClock "0:00:12"]
[BlackClock "0:00:15"]

1. e4 {[%clk 0:03:00]}  c5 {[%clk 0:02:58]} 2. d4 {[%clk 0:03:00]}  cxd4 {[%clk 0:02:57]} 3. c3 {[%clk 0:03:00]}  e5 {[%clk 0:02:57]} 4. cxd4 {[%clk 0:03:00]}  exd4 {[%clk 0:02:56]} 5. f4 {[%clk 0:03:00]}  Nc6 {[%clk 0:02:50]} 6. Nf3 {[%clk 0:03:00]}  d5 {[%clk 0:02:45]} 7. e5 {[%clk 0:03:00]}  Bb4+ {[%clk 0:02:43]} 8. Bd2 {[%clk 0:02:59]}  Qb6 {[%clk 0:02:36]} 9. Bd3 {[%clk 0:02:58]}  Nge7 {[%clk 0:02:34]} 10. O-O {[%clk 0:02:57]}  Bf5 {[%clk 0:02:26]} 11. Bc1 {[%clk 0:02:42]}  Bc5 {[%clk 0:02:00]} 12. a3 {[%clk 0:02:40]}  a5 {[%clk 0:01:56]} 13. Kh1 {[%clk 0:02:20]}  h5 {[%clk 0:01:29]} 14. Re1 {[%clk 0:02:07]}  h4 {[%clk 0:01:26]} 15. Ng5 {[%clk 0:01:22]}  g6 {[%clk 0:01:09]} 16. e6 {[%clk 0:01:18]}  f6 {[%clk 0:01:02]} 17. Nf7 {[%clk 0:01:09]}  Rh7 {[%clk 0:00:43]} 18. b4 {[%clk 0:01:07]}  axb4 {[%clk 0:00:38]} 19. axb4 {[%clk 0:01:08]}  Rxa1 {[%clk 0:00:38]} 20. bxc5 {[%clk 0:01:08]}  Qxc5 {[%clk 0:00:34]} 21. Bb2 {[%clk 0:00:26]}  Ra7 {[%clk 0:00:29]} 22. Bxf5 {[%clk 0:00:17]}  Nxf5 {[%clk 0:00:29]} 23. Qd3 {[%clk 0:00:16]}  Nb4 {[%clk 0:00:22]} 24. Qb3 {[%clk 0:00:16]}  Ng3+ {[%clk 0:00:16]} 25. hxg3 {[%clk 0:00:14]}  hxg3+ {[%clk 0:00:16]} 26. Kg1 {[%clk 0:00:15]}  d3+ {[%clk 0:00:16]} 27. Kf1 {[%clk 0:00:12]}  Rh1# {[%clk 0:00:15]} 0-1


[Site "https://www.chess.com"]

[Event "Titled Tuesday Blitz March 07 Early 2023"]
[White "Hartikainen, Jarmo"]
[Black "Strahov, Andrej"]
[WhiteFideId "503134"]
[BlackFideId "4165489"]
[WhiteElo "2201"]
[BlackElo "2551"]
[Result "0-1"]
[Round "01"]
[TimeControl "180+2"]
[Date "2023.03.07"]
[WhiteClock "0:00:40"]
[BlackClock "0:02:16"]

1. e4 {[%clk 0:02:55]}  b6 {[%clk 0:02:59]} 2. d4 {[%clk 0:02:55]}  Bb7 {[%clk 0:03:00]} 3. Bd3 {[%clk 0:02:55]}  g6 {[%clk 0:03:00]} 4. c3 {[%clk 0:02:52]}  Bg7 {[%clk 0:03:01]} 5. Nf3 {[%clk 0:02:50]}  d6 {[%clk 0:03:01]} 6. Qe2 {[%clk 0:02:44]}  Nd7 {[%clk 0:03:01]} 7. h3 {[%clk 0:02:28]}  e5 {[%clk 0:03:00]} 8. d5 {[%clk 0:02:24]}  Ne7 {[%clk 0:02:57]} 9. g4 {[%clk 0:02:21]}  O-O {[%clk 0:02:56]} 10. Be3 {[%clk 0:02:08]}  Kh8 {[%clk 0:02:56]} 11. Na3 {[%clk 0:02:00]}  f5 {[%clk 0:02:56]} 12. gxf5 {[%clk 0:02:00]}  gxf5 {[%clk 0:02:56]} 13. O-O-O {[%clk 0:01:50]}  Nf6 {[%clk 0:02:42]} 14. Bg5 {[%clk 0:01:29]}  Qd7 {[%clk 0:02:37]} 15. Rhg1 {[%clk 0:01:14]}  fxe4 {[%clk 0:02:30]} 16. Bxe4 {[%clk 0:01:07]}  Nxe4 {[%clk 0:02:29]} 17. Qxe4 {[%clk 0:01:05]}  Qf5 {[%clk 0:02:24]} 18. Qxf5 {[%clk 0:00:52]}  Nxf5 {[%clk 0:02:22]} 19. c4 {[%clk 0:00:47]}  Rf7 {[%clk 0:02:17]} 20. Rd3 {[%clk 0:00:40]}  e4 {[%clk 0:02:16]} 0-1


[Site "https://www.chess.com"]

[Event "Titled Tuesday Blitz March 07 Early 2023"]
[White "Rosh Jain"]
[Black "Sovetov, Oleksandr"]
[WhiteFideId "25789465"]
[BlackFideId "34105786"]
[WhiteElo "2233"]
[BlackElo "2548"]
[Result "0-1"]
[Round "01"]
[TimeControl "180+2"]
[Date "2023.03.07"]
[WhiteClock "0:00:04"]
[BlackClock "0:00:07"]

1. e4 {[%clk 0:03:00]}  c5 {[%clk 0:02:58]} 2. Nf3 {[%clk 0:02:55]}  Nc6 {[%clk 0:02:58]} 3. d4 {[%clk 0:02:54]}  cxd4 {[%clk 0:02:59]} 4. Nxd4 {[%clk 0:02:54]}  Nf6 {[%clk 0:02:59]} 5. Nc3 {[%clk 0:02:53]}  e5 {[%clk 0:02:59]} 6. Ndb5 {[%clk 0:02:53]}  d6 {[%clk 0:03:00]} 7. Bg5 {[%clk 0:02:53]}  a6 {[%clk 0:03:00]} 8. Na3 {[%clk 0:02:52]}  b5 {[%clk 0:03:00]} 9. Nd5 {[%clk 0:02:52]}  Be7 {[%clk 0:02:52]} 10. Bxf6 {[%clk 0:02:52]}  Bxf6 {[%clk 0:02:52]} 11. c3 {[%clk 0:02:52]}  g6 {[%clk 0:02:47]} 12. Be2 {[%clk 0:02:51]}  Bg7 {[%clk 0:02:45]} 13. Nc2 {[%clk 0:02:48]}  Rb8 {[%clk 0:02:35]} 14. O-O {[%clk 0:02:46]}  O-O {[%clk 0:02:35]} 15. Qd2 {[%clk 0:02:38]}  Be6 {[%clk 0:02:23]} 16. Nce3 {[%clk 0:02:36]}  f5 {[%clk 0:02:20]} 17. exf5 {[%clk 0:02:35]}  gxf5 {[%clk 0:02:20]} 18. f4 {[%clk 0:02:35]}  Kh8 {[%clk 0:02:18]} 19. a4 {[%clk 0:02:27]}  bxa4 {[%clk 0:02:00]} 20. Rxa4 {[%clk 0:02:26]}  a5 {[%clk 0:01:59]} 21. Rd1 {[%clk 0:02:09]}  Rf7 {[%clk 0:01:58]} 22. b4 {[%clk 0:02:01]}  axb4 {[%clk 0:01:57]} 23. cxb4 {[%clk 0:02:02]}  Nd4 {[%clk 0:01:56]} 24. Bc4 {[%clk 0:01:34]}  Qd7 {[%clk 0:01:44]} 25. Ra6 {[%clk 0:01:25]}  Bf8 {[%clk 0:01:33]} 26. Qd3 {[%clk 0:01:07]}  Qb7 {[%clk 0:01:18]} 27. Rda1 {[%clk 0:00:48]}  Rc8 {[%clk 0:01:13]} 28. b5 {[%clk 0:00:32]}  Bg7 {[%clk 0:01:07]} 29. fxe5 {[%clk 0:00:29]}  dxe5 {[%clk 0:01:04]} 30. b6 {[%clk 0:00:28]}  e4 {[%clk 0:01:01]} 31. Qf1 {[%clk 0:00:20]}  f4 {[%clk 0:00:44]} 32. Ra7 {[%clk 0:00:20]}  Qb8 {[%clk 0:00:35]} 33. Rxf7 {[%clk 0:00:18]}  Bxf7 {[%clk 0:00:33]} 34. Qxf4 {[%clk 0:00:13]}  Bxd5 {[%clk 0:00:26]} 35. Qxb8 {[%clk 0:00:11]}  Rxb8 {[%clk 0:00:23]} 36. Nxd5 {[%clk 0:00:06]}  Nf3+ {[%clk 0:00:23]} 37. gxf3 {[%clk 0:00:06]}  Bxa1 {[%clk 0:00:23]} 38. fxe4 {[%clk 0:00:07]}  Bd4+ {[%clk 0:00:21]} 39. Kg2 {[%clk 0:00:07]}  Bxb6 {[%clk 0:00:22]} 40. Nxb6 {[%clk 0:00:06]}  Rxb6 {[%clk 0:00:23]} 41. Bd5 {[%clk 0:00:07]}  Kg7 {[%clk 0:00:20]} 42. Kg3 {[%clk 0:00:07]}  Kf6 {[%clk 0:00:20]} 43. Kf4 {[%clk 0:00:07]}  Rb4 {[%clk 0:00:19]} 44. Kf3 {[%clk 0:00:04]}  Ke5 {[%clk 0:00:19]} 45. Kg4 {[%clk 0:00:04]}  Rb2 {[%clk 0:00:19]} 46. h4 {[%clk 0:00:04]}  Rg2+ {[%clk 0:00:19]} 47. Kh5 {[%clk 0:00:04]}  Rg6 {[%clk 0:00:20]} 48. Bf7 {[%clk 0:00:02]}  Rf6 {[%clk 0:00:19]} 49. Bd5 {[%clk 0:00:02]}  Kf4 {[%clk 0:00:19]} 50. e5 {[%clk 0:00:02]}  Kxe5 {[%clk 0:00:19]} 51. Bg8 {[%clk 0:00:03]}  h6 {[%clk 0:00:16]} 52. Bh7 {[%clk 0:00:03]}  Rd6 {[%clk 0:00:08]} 53. Bg6 {[%clk 0:00:03]}  Rd4 {[%clk 0:00:07]} 54. Kxh6 {[%clk 0:00:03]}  Rxh4+ {[%clk 0:00:07]} 55. Kg7 {[%clk 0:00:03]}  Rg4 {[%clk 0:00:07]} 56. Kf7 {[%clk 0:00:03]}  Rf4+ {[%clk 0:00:07]} 57. Kg7 {[%clk 0:00:04]}  Ke6 {[%clk 0:00:08]} 58. Bh7 {[%clk 0:00:04]}  Rf7+ {[%clk 0:00:07]} 59. Kg6 {[%clk 0:00:04]}  Rf6+ {[%clk 0:00:05]} 60. Kg5 {[%clk 0:00:04]}  Rf2 {[%clk 0:00:05]} 61. Bg8+ {[%clk 0:00:04]}  Ke5 {[%clk 0:00:03]} 62. Bh7 {[%clk 0:00:04]}  Rg2+ {[%clk 0:00:03]} 63. Kh6 {[%clk 0:00:04]}  Kf6 {[%clk 0:00:04]} 64. Kh5 {[%clk 0:00:01]}  Rh2+ {[%clk 0:00:04]} 65. Kg4 {[%clk 0:00:01]}  Rxh7 {[%clk 0:00:05]} 66. Kg3 {[%clk 0:00:02]}  Rh5 {[%clk 0:00:05]} 67. Kg4 {[%clk 0:00:02]}  Rf5 {[%clk 0:00:05]} 68. Kg3 {[%clk 0:00:02]}  Kg5 {[%clk 0:00:05]} 69. Kg2 {[%clk 0:00:03]}  Kg4 {[%clk 0:00:06]} 70. Kg1 {[%clk 0:00:03]}  Kg3 {[%clk 0:00:06]} 71. Kh1 {[%clk 0:00:04]}  Rf1# {[%clk 0:00:07]} 0-1


[Site "https://www.chess.com"]

[Event "Titled Tuesday Blitz March 07 Early 2023"]
[White "Richter, Paul"]
[Black "Sabar, Ethmane Daouda"]
[WhiteFideId "2046350"]
[BlackFideId "19600097"]
[WhiteElo "2545"]
[BlackElo "1950"]
[Result "1-0"]
[Round "01"]
[TimeControl "180+2"]
[Date "2023.03.07"]
[WhiteClock "0:00:56"]
[BlackClock "0:00:16"]

1. e4 {[%clk 0:02:58]}  e5 {[%clk 0:02:56]} 2. Nf3 {[%clk 0:02:58]}  Nc6 {[%clk 0:02:56]} 3. Bb5 {[%clk 0:02:57]}  f5 {[%clk 0:02:54]} 4. d3 {[%clk 0:02:56]}  fxe4 {[%clk 0:02:53]} 5. dxe4 {[%clk 0:02:57]}  Nf6 {[%clk 0:02:54]} 6. O-O {[%clk 0:02:57]}  Bc5 {[%clk 0:02:54]} 7. Qd3 {[%clk 0:02:56]}  d6 {[%clk 0:02:52]} 8. Qc4 {[%clk 0:02:56]}  Bd7 {[%clk 0:02:45]} 9. Nc3 {[%clk 0:02:39]}  Qe7 {[%clk 0:02:42]} 10. Bg5 {[%clk 0:02:17]}  O-O-O {[%clk 0:02:27]} 11. Nd5 {[%clk 0:02:08]}  Qf8 {[%clk 0:02:27]} 12. b4 {[%clk 0:02:02]}  Bb6 {[%clk 0:02:17]} 13. a4 {[%clk 0:01:46]}  a6 {[%clk 0:00:48]} 14. a5 {[%clk 0:01:42]}  Ba7 {[%clk 0:00:23]} 15. Bxa6 {[%clk 0:01:18]}  bxa6 {[%clk 0:00:24]} 16. Qxa6+ {[%clk 0:01:18]}  Kb8 {[%clk 0:00:24]} 17. Bxf6 {[%clk 0:01:11]}  gxf6 {[%clk 0:00:23]} 18. b5 {[%clk 0:01:11]}  Bc8 {[%clk 0:00:19]} 19. Qxc6 {[%clk 0:01:11]}  Qg7 {[%clk 0:00:15]} 20. b6 {[%clk 0:01:07]}  Bb7 {[%clk 0:00:16]} 21. bxc7+ {[%clk 0:01:00]}  Ka8 {[%clk 0:00:16]} 22. Nb6+ {[%clk 0:00:56]} 1-0


[Site "https://www.chess.com"]

[Event "Titled Tuesday Blitz March 07 Early 2023"]
[White "Bashirli, Saadat"]
[Black "Sanchez Enriquez, Oscar Gerardo"]
[WhiteFideId "13429990"]
[BlackFideId "5106311"]
[WhiteElo "1408"]
[BlackElo "2387"]
[Result "0-1"]
[Round "01"]
[TimeControl "180+2"]
[Date "2023.03.07"]
[WhiteClock "0:00:43"]
[BlackClock "0:00:53"]

1. e4 {[%clk 0:02:58]}  d6 {[%clk 0:03:00]} 2. d4 {[%clk 0:02:58]}  Nf6 {[%clk 0:03:01]} 3. Nc3 {[%clk 0:02:56]}  g6 {[%clk 0:03:02]} 4. Be2 {[%clk 0:02:56]}  Bg7 {[%clk 0:03:01]} 5. h4 {[%clk 0:02:56]}  h5 {[%clk 0:03:01]} 6. Nf3 {[%clk 0:02:57]}  Bg4 {[%clk 0:02:59]} 7. O-O {[%clk 0:02:56]}  Nc6 {[%clk 0:02:59]} 8. Be3 {[%clk 0:02:54]}  O-O {[%clk 0:02:58]} 9. Qd2 {[%clk 0:02:47]}  Nd7 {[%clk 0:02:56]} 10. Rad1 {[%clk 0:02:43]}  e6 {[%clk 0:02:49]} 11. d5 {[%clk 0:02:34]}  exd5 {[%clk 0:02:49]} 12. exd5 {[%clk 0:02:34]}  Nce5 {[%clk 0:02:45]} 13. Nxe5 {[%clk 0:02:34]}  Nxe5 {[%clk 0:02:45]} 14. Bxg4 {[%clk 0:02:34]}  Nxg4 {[%clk 0:02:44]} 15. Bg5 {[%clk 0:02:35]}  Qd7 {[%clk 0:02:43]} 16. Qf4 {[%clk 0:02:29]}  Be5 {[%clk 0:02:41]} 17. Qe4 {[%clk 0:02:25]}  Rfe8 {[%clk 0:02:40]} 18. Qd3 {[%clk 0:02:18]}  Bg7 {[%clk 0:02:28]} 19. Rfe1 {[%clk 0:02:15]}  Ne5 {[%clk 0:02:28]} 20. Qg3 {[%clk 0:02:08]}  Nc4 {[%clk 0:02:21]} 21. Rxe8+ {[%clk 0:02:02]}  Rxe8 {[%clk 0:02:19]} 22. b3 {[%clk 0:01:58]}  Ne5 {[%clk 0:02:15]} 23. Bf4 {[%clk 0:01:56]}  Qf5 {[%clk 0:02:14]} 24. Bxe5 {[%clk 0:01:53]}  Bxe5 {[%clk 0:02:12]} 25. Qd3 {[%clk 0:01:52]}  Qg4 {[%clk 0:02:12]} 26. Ne4 {[%clk 0:01:37]}  Qxh4 {[%clk 0:02:04]} 27. g3 {[%clk 0:01:34]}  Qg4 {[%clk 0:02:04]} 28. Kg2 {[%clk 0:01:31]}  h4 {[%clk 0:01:52]} 29. Rh1 {[%clk 0:01:25]}  hxg3 {[%clk 0:01:49]} 30. fxg3 {[%clk 0:01:22]}  Kg7 {[%clk 0:01:44]} 31. Qe3 {[%clk 0:01:15]}  Rh8 {[%clk 0:01:41]} 32. Rxh8 {[%clk 0:01:11]}  Kxh8 {[%clk 0:01:42]} 33. Qh6+ {[%clk 0:01:11]}  Kg8 {[%clk 0:01:42]} 34. Ng5 {[%clk 0:01:08]}  Qxg3+ {[%clk 0:01:36]} 35. Kf1 {[%clk 0:01:07]}  Bg7 {[%clk 0:01:35]} 36. Qh7+ {[%clk 0:00:59]}  Kf8 {[%clk 0:01:35]} 37. Ne4 {[%clk 0:00:57]}  Qf4+ {[%clk 0:01:25]} 38. Nf2 {[%clk 0:00:58]}  Qc1+ {[%clk 0:01:24]} 39. Kg2 {[%clk 0:00:57]}  Qxc2 {[%clk 0:01:25]} 40. Qh4 {[%clk 0:00:51]}  Be5 {[%clk 0:01:07]} 41. Qd8+ {[%clk 0:00:47]}  Kg7 {[%clk 0:01:07]} 42. Qh4 {[%clk 0:00:47]}  Qd2 {[%clk 0:00:56]} 43. Qe4 {[%clk 0:00:44]}  Bd4 {[%clk 0:00:52]} 44. Qf3 {[%clk 0:00:41]}  Qxf2+ {[%clk 0:00:52]} 45. Qxf2 {[%clk 0:00:42]}  Bxf2 {[%clk 0:00:52]} 46. Kxf2 {[%clk 0:00:43]}  Kf6 {[%clk 0:00:53]} 0-1


[Site "https://www.chess.com"]

[Event "Titled Tuesday Blitz March 07 Early 2023"]
[White "Sailer, Mike"]
[Black "Garv Gaur"]
[WhiteFideId "2012901"]
[BlackFideId "45030839"]
[WhiteElo "2109"]
[BlackElo "2068"]
[Result "0-1"]
[Round "01"]
[TimeControl "180+2"]
[Date "2023.03.07"]
[WhiteClock "0:00:57"]
[BlackClock "0:02:07"]

1. d4 {[%clk 0:02:59]}  Nf6 {[%clk 0:02:59]} 2. Bg5 {[%clk 0:02:59]}  d5 {[%clk 0:02:57]} 3. Bxf6 {[%clk 0:02:59]}  exf6 {[%clk 0:02:57]} 4. e3 {[%clk 0:03:00]}  Be6 {[%clk 0:02:57]} 5. Nf3 {[%clk 0:02:59]}  c6 {[%clk 0:02:56]} 6. Nbd2 {[%clk 0:02:58]}  Bd6 {[%clk 0:02:57]} 7. c4 {[%clk 0:02:57]}  dxc4 {[%clk 0:02:57]} 8. Bxc4 {[%clk 0:02:57]}  Bg4 {[%clk 0:02:53]} 9. O-O {[%clk 0:02:56]}  O-O {[%clk 0:02:53]} 10. Qb3 {[%clk 0:02:45]}  Qc7 {[%clk 0:02:53]} 11. h3 {[%clk 0:02:43]}  Bh5 {[%clk 0:02:49]} 12. Rac1 {[%clk 0:02:37]}  a5 {[%clk 0:02:48]} 13. a3 {[%clk 0:02:29]}  a4 {[%clk 0:02:47]} 14. Qd1 {[%clk 0:02:29]}  Nd7 {[%clk 0:02:46]} 15. Be2 {[%clk 0:02:29]}  Bg6 {[%clk 0:02:45]} 16. Nc4 {[%clk 0:02:29]}  Be7 {[%clk 0:02:45]} 17. Re1 {[%clk 0:02:15]}  Nb6 {[%clk 0:02:44]} 18. Nxb6 {[%clk 0:02:15]}  Qxb6 {[%clk 0:02:45]} 19. Qd2 {[%clk 0:02:12]}  Rfd8 {[%clk 0:02:44]} 20. Bd3 {[%clk 0:02:00]}  c5 {[%clk 0:02:30]} 21. Bxg6 {[%clk 0:01:59]}  hxg6 {[%clk 0:02:31]} 22. Qc2 {[%clk 0:01:53]}  cxd4 {[%clk 0:02:30]} 23. Nxd4 {[%clk 0:01:53]}  Bd6 {[%clk 0:02:28]} 24. Red1 {[%clk 0:01:47]}  Be5 {[%clk 0:02:28]} 25. Qc4 {[%clk 0:01:44]}  Qxb2 {[%clk 0:02:23]} 26. Rb1 {[%clk 0:01:44]}  Qxa3 {[%clk 0:02:23]} 27. Rxb7 {[%clk 0:01:42]}  Qf8 {[%clk 0:02:21]} 28. Rdb1 {[%clk 0:01:26]}  a3 {[%clk 0:02:19]} 29. Nc6 {[%clk 0:01:19]}  a2 {[%clk 0:02:17]} 30. Nxd8 {[%clk 0:01:10]}  axb1=Q+ {[%clk 0:02:14]} 31. Rxb1 {[%clk 0:01:10]}  Qxd8 {[%clk 0:02:11]} 32. g3 {[%clk 0:01:05]}  Rc8 {[%clk 0:02:11]} 33. Qa2 {[%clk 0:01:02]}  Qc7 {[%clk 0:02:08]} 34. Kg2 {[%clk 0:00:57]}  Qc6+ {[%clk 0:02:08]} 35. Kh2 {[%clk 0:00:57]}  Qf3 {[%clk 0:02:07]} 0-1


[Site "https://www.chess.com"]

[Event "Titled Tuesday Blitz March 07 Early 2023"]
[White "Novik, Maxim"]
[Black "Kho, Darrell"]
[WhiteFideId "4102924"]
[BlackFideId "1019317"]
[WhiteElo "2287"]
[BlackElo "2158"]
[Result "0-1"]
[Round "01"]
[TimeControl "180+2"]
[Date "2023.03.07"]
[WhiteClock "0:00:40"]
[BlackClock "0:00:11"]

1. e4 {[%clk 0:02:58]}  e6 {[%clk 0:02:57]} 2. d3 {[%clk 0:02:58]}  d5 {[%clk 0:02:55]} 3. Nd2 {[%clk 0:02:58]}  Nc6 {[%clk 0:02:52]} 4. Ngf3 {[%clk 0:02:57]}  e5 {[%clk 0:02:48]} 5. c3 {[%clk 0:02:57]}  a5 {[%clk 0:02:43]} 6. Be2 {[%clk 0:02:55]}  Nf6 {[%clk 0:02:40]} 7. O-O {[%clk 0:02:55]}  Bc5 {[%clk 0:02:27]} 8. Nxe5 {[%clk 0:02:44]}  Nxe5 {[%clk 0:01:56]} 9. d4 {[%clk 0:02:41]}  Bxd4 {[%clk 0:01:25]} 10. cxd4 {[%clk 0:02:41]}  Nc6 {[%clk 0:01:25]} 11. e5 {[%clk 0:02:40]}  Nd7 {[%clk 0:01:20]} 12. Nf3 {[%clk 0:02:36]}  O-O {[%clk 0:01:14]} 13. Be3 {[%clk 0:02:34]}  Nb6 {[%clk 0:01:07]} 14. Rc1 {[%clk 0:02:18]}  Bf5 {[%clk 0:00:57]} 15. Ne1 {[%clk 0:02:11]}  Qd7 {[%clk 0:00:46]} 16. g4 {[%clk 0:02:10]}  Be6 {[%clk 0:00:41]} 17. f4 {[%clk 0:02:02]}  f5 {[%clk 0:00:41]} 18. gxf5 {[%clk 0:02:00]}  Bxf5 {[%clk 0:00:41]} 19. Nf3 {[%clk 0:01:59]}  Nd8 {[%clk 0:00:39]} 20. Kh1 {[%clk 0:01:59]}  Be4 {[%clk 0:00:36]} 21. Rg1 {[%clk 0:01:58]}  Ne6 {[%clk 0:00:35]} 22. Qd2 {[%clk 0:01:57]}  Nc4 {[%clk 0:00:34]} 23. Qc3 {[%clk 0:01:50]}  Nxe3 {[%clk 0:00:22]} 24. Qxe3 {[%clk 0:01:36]}  Nxf4 {[%clk 0:00:21]} 25. Rg3 {[%clk 0:01:31]}  Nxe2 {[%clk 0:00:18]} 26. Qxe2 {[%clk 0:01:31]}  Qf5 {[%clk 0:00:18]} 27. Rf1 {[%clk 0:01:27]}  Rf7 {[%clk 0:00:13]} 28. Qe3 {[%clk 0:01:24]}  Raf8 {[%clk 0:00:13]} 29. Kg1 {[%clk 0:01:24]}  Bxf3 {[%clk 0:00:12]} 30. Rgxf3 {[%clk 0:01:23]}  Qg4+ {[%clk 0:00:07]} 31. Rg3 {[%clk 0:01:19]}  Rxf1+ {[%clk 0:00:07]} 32. Kg2 {[%clk 0:01:19]}  Qe4+ {[%clk 0:00:06]} 33. Qxe4 {[%clk 0:01:19]}  dxe4 {[%clk 0:00:06]} 34. Rc3 {[%clk 0:01:19]}  R1f2+ {[%clk 0:00:06]} 35. Kg3 {[%clk 0:01:19]}  R2f3+ {[%clk 0:00:06]} 36. Rxf3 {[%clk 0:01:19]}  Rxf3+ {[%clk 0:00:06]} 37. Kg2 {[%clk 0:01:19]}  Kf7 {[%clk 0:00:06]} 38. d5 {[%clk 0:01:18]}  Ke7 {[%clk 0:00:07]} 39. a4 {[%clk 0:01:17]}  Rf5 {[%clk 0:00:07]} 40. d6+ {[%clk 0:01:16]}  cxd6 {[%clk 0:00:07]} 41. exd6+ {[%clk 0:01:16]}  Kxd6 {[%clk 0:00:08]} 42. Kg3 {[%clk 0:01:16]}  Ke5 {[%clk 0:00:08]} 43. Kg4 {[%clk 0:01:16]}  e3 {[%clk 0:00:09]} 44. Kg3 {[%clk 0:01:16]}  e2 {[%clk 0:00:09]} 45. Kg4 {[%clk 0:00:40]}  e1=Q {[%clk 0:00:10]} 46. h3 {[%clk 0:00:39]}  Qe4+ {[%clk 0:00:10]} 47. Kg3 {[%clk 0:00:39]}  Rf3+ {[%clk 0:00:11]} 48. Kg2 {[%clk 0:00:40]}  Qe2+ {[%clk 0:00:11]} 49. Kg1 {[%clk 0:00:40]}  Rf1# {[%clk 0:00:11]} 0-1


[Site "https://www.chess.com"]

[Event "Titled Tuesday Blitz March 07 Early 2023"]
[White "Zarnicki, Pablo"]
[Black "Chemin, Justo Reinaldo"]
[WhiteFideId "100137"]
[BlackFideId "2101580"]
[WhiteElo "2468"]
[BlackElo "1940"]
[Result "1-0"]
[Round "01"]
[TimeControl "180+2"]
[Date "2023.03.07"]
[WhiteClock "0:02:18"]
[BlackClock "0:00:33"]

1. e4 {[%clk 0:02:54]}  e6 {[%clk 0:02:57]} 2. d3 {[%clk 0:02:50]}  c5 {[%clk 0:02:55]} 3. Nf3 {[%clk 0:02:50]}  d6 {[%clk 0:02:53]} 4. g3 {[%clk 0:02:49]}  a6 {[%clk 0:02:52]} 5. Bg2 {[%clk 0:02:50]}  b5 {[%clk 0:02:49]} 6. O-O {[%clk 0:02:51]}  Bb7 {[%clk 0:02:49]} 7. a4 {[%clk 0:02:51]}  Qc7 {[%clk 0:02:48]} 8. axb5 {[%clk 0:02:50]}  axb5 {[%clk 0:02:48]} 9. Rxa8 {[%clk 0:02:51]}  Bxa8 {[%clk 0:02:47]} 10. Nc3 {[%clk 0:02:51]}  b4 {[%clk 0:02:47]} 11. Nb5 {[%clk 0:02:51]}  Qb6 {[%clk 0:02:45]} 12. c4 {[%clk 0:02:52]}  Bc6 {[%clk 0:02:40]} 13. d4 {[%clk 0:02:44]}  Bxb5 {[%clk 0:02:37]} 14. cxb5 {[%clk 0:02:44]}  Qxb5 {[%clk 0:02:35]} 15. dxc5 {[%clk 0:02:41]}  dxc5 {[%clk 0:02:22]} 16. Bf4 {[%clk 0:02:41]}  Nd7 {[%clk 0:02:18]} 17. Qa1 {[%clk 0:02:28]}  Qb7 {[%clk 0:02:03]} 18. Rd1 {[%clk 0:02:25]}  Ngf6 {[%clk 0:02:01]} 19. Qa4 {[%clk 0:02:25]}  Be7 {[%clk 0:01:13]} 20. Ne5 {[%clk 0:02:25]}  c4 {[%clk 0:00:47]} 21. Nxd7 {[%clk 0:02:22]}  Nxd7 {[%clk 0:00:45]} 22. e5 {[%clk 0:02:22]}  Qc7 {[%clk 0:00:33]} 23. Rxd7 {[%clk 0:02:18]} 1-0


[Site "https://www.chess.com"]